bitfinex/quotes_SOLUSD_20251018
["timestamp","ask_amount","ask_price","bid_price","bid_amount"]
[1760769758751,0.66,185.71,185.69,0.28432314]
[1760769759255,1.64733115,185.7,185.68,0.28432314]
[1760769759557,0.66,185.69,185.68,0.28432314]
[1760769759849,0.66,185.69,185.68,0.14216157]
[1760769760050,0.66,185.69,185.65,10.87647521]
[1760769760230,2.30733115,185.68,185.65,16.2628821]
[1760769760633,2.30733115,185.68,185.66,0.28432314]
[1760769761051,125.18,185.7,185.67,0.68]
[1760769761232,102.3,185.7,185.67,0.68]
[1760769761546,102.96,185.7,185.67,0.68]
[1760769761926,102.3,185.7,185.68,0.28432314]
[1760769762251,102.96,185.7,185.68,0.28432314]
[1760769764234,0.66,185.69,185.68,0.28432314]
[1760769764428,102.3,185.7,185.68,0.28432314]
[1760769764628,102.96,185.7,185.68,0.28432314]
[1760769766949,102.96,185.7,185.69,11.16079835]
[1760769772746,104.60733115,185.7,185.69,11.16079835]
[1760769784445,104.60733115,185.7,185.69,0.28432314]
[1760769784659,104.60733115,185.7,185.64,10.87647521]
[1760769784866,1.64733115,185.67,185.65,0.28432314]
[1760769785051,2.32733115,185.67,185.65,0.28432314]
[1760769785373,25.20733115,185.67,185.65,0.28432314]
[1760769785564,1.64733115,185.66,185.65,0.28432314]
[1760769786857,22.88,185.67,185.65,0.94432314]
[1760769787063,22.88,185.67,185.65,6.33072273]
[1760769787370,2.57573725,185.68,185.66,10.87647521]
[1760769788259,3.27573725,185.68,185.66,10.87647521]
[1760769789271,125.18,185.7,185.67,0.95432314]
[1760769789446,125.18,185.7,185.69,0.28432314]
[1760769789651,125.88,185.7,185.69,0.28432314]
[1760769789887,128.45573725,185.7,185.69,0.28432314]
[1760769791260,125.18,185.7,185.69,16.54611796]
[1760769791461,125.18,185.7,185.69,17.21611796]
[1760769791775,102.3,185.7,185.69,17.21611796]
[1760769792177,102.3,185.75,185.71,0.28432314]
[1760769792357,105.57573725,185.75,185.71,0.95432314]
[1760769792563,128.45573725,185.75,185.71,0.95432314]
[1760769792864,3.27573725,185.74,185.71,0.95432314]
[1760769793373,3.27573725,185.73,185.71,0.28432314]
[1760769793676,25.45573725,185.72,185.7,0.28432314]
[1760769793975,3.27573725,185.71,185.7,0.28432314]
[1760769795279,3.27573725,185.71,185.69,16.26178055]
[1760769795571,0.7,185.7,185.69,16.54610369]
[1760769796274,2.57573725,185.71,185.69,16.54610369]
[1760769796777,3.27573725,185.71,185.69,16.54610369]
[1760769798478,2.57573725,185.71,185.69,16.54610369]
[1760769798681,2.57573725,185.71,185.69,17.21610369]
[1760769798859,2.57573725,185.71,185.69,16.54610369]
[1760769799055,102.3,185.7,185.69,16.54610369]
[1760769801480,103.0,185.7,185.68,10.87647521]
[1760769801687,2.57573725,185.69,185.68,11.16079835]
[1760769801866,3.27573725,185.69,185.68,0.28432314]
[1760769802176,2.57573725,185.69,185.68,0.28432314]
[1760769803183,2.57573725,185.69,185.68,5.66993279]
[1760769803357,103.0,185.7,185.68,5.66993279]
[1760769803556,2.57573725,185.69,185.68,5.66993279]
[1760769803869,3.27573725,185.69,185.68,5.66993279]
[1760769805365,2.57573725,185.69,185.68,5.66993279]
[1760769806257,102.3,185.7,185.69,11.16079835]
[1760769806482,102.3,185.7,185.69,11.83079835]
[1760769808170,102.3,185.7,185.69,17.21611796]
[1760769808374,104.87573725,185.75,185.69,30.679417]
[1760769808599,102.3,185.75,185.72,0.28432314]
[1760769808867,102.3,185.75,185.74,0.28432314]
[1760769810081,102.3,185.75,185.74,16.54466827]
[1760769810592,102.3,185.75,185.73,0.67]
[1760769810593,105.57573725,185.75,185.73,5.38407751]
[1760769811085,0.7,185.74,185.73,5.66840065]
[1760769814162,0.7,185.74,185.72,5.38439922]
[1760769814371,26.15573725,185.73,185.72,5.38439922]
[1760769815189,26.15573725,185.73,185.71,16.26118276]
[1760769818662,23.6,185.72,185.68,21.57859708]
[1760769818862,105.59573725,185.71,185.68,5.38557628]
[1760769819059,0.72,185.7,185.68,5.38557628]
[1760769820575,102.3,185.71,185.69,11.87079835]
[1760769821787,102.3,185.71,185.69,11.16079835]
[1760769822573,102.3,185.71,185.7,0.28432314]
[1760769822772,103.02,185.71,185.7,0.28432314]
[1760769822990,105.59573725,185.71,185.68,5.38536343]
[1760769823193,105.59573725,185.71,185.69,11.16079835]
[1760769823194,0.72,185.7,185.69,11.16079835]
[1760769823380,104.87573725,185.71,185.69,11.16079835]
[1760769823575,105.59573725,185.71,185.69,11.16079835]
[1760769824779,105.59573725,185.71,185.69,5.66954492]
[1760769825393,104.87573725,185.71,185.69,5.66954492]
[1760769825888,102.3,185.7,185.69,5.66954492]
[1760769826988,102.3,185.7,185.69,6.37954492]
[1760769831195,102.3,185.7,185.69,5.66954492]
[1760769835598,102.3,185.7,185.69,16.54602013]
[1760769837400,0.2,185.76,185.7,11.16079835]
[1760769837608,0.2,185.76,185.73,0.28432314]
[1760769837793,0.2,185.76,185.75,11.16079835]
[1760769838210,0.2,185.76,185.75,28.05857657]
[1760769838803,0.2,185.76,185.75,33.98051465]
[1760769840715,0.2,185.76,185.75,33.27051465]
[1760769840912,0.92,185.76,185.75,32.73215665]
[1760769841086,0.92,185.76,185.75,16.54437843]
[1760769841287,0.92,185.76,185.75,18.70286533]
[1760769843512,103.22,185.76,185.75,18.70286533]
[1760769843715,103.22,185.76,185.75,16.54437843]
[1760769846111,103.22,185.76,185.75,0.28432314]
[1760769850428,103.22,185.76,185.75,16.54437843]
[1760769854935,103.22,185.76,185.75,11.16079835]
[1760769855232,103.22,185.76,185.72,11.16079835]
[1760769855437,104.61688605,185.75,185.72,16.54520787]
[1760769855805,104.61688605,185.75,185.72,17.21520787]
[1760769856004,102.97,185.75,185.72,17.21520787]
[1760769859409,102.3,185.75,185.72,16.54520787]
[1760769859635,0.67,185.74,185.72,16.54520787]
[1760769860124,103.94688605,185.75,185.72,16.54520787]
[1760769860734,0.67,185.74,185.72,16.54520787]
[1760769861332,0.67,185.73,185.72,16.54520787]
[1760769864839,103.94688605,185.75,185.71,16.26111067]
[1760769865133,2.31688605,185.73,185.69,11.01863678]
[1760769865330,0.67,185.72,185.69,11.01863678]
[1760769865546,1.64688605,185.7,185.68,10.87647521]
[1760769865712,2.31688605,185.7,185.68,10.87647521]
[1760769866533,102.3,185.71,185.7,5.38502961]
[1760769866918,102.97,185.71,185.7,5.38502961]
[1760769867732,102.97,185.71,185.69,5.66964275]
[1760769871435,102.3,185.71,185.69,5.66964275]
[1760769871632,102.3,185.71,185.7,11.83079835]
[1760769872235,102.3,185.71,185.7,11.16079835]
[1760769873234,102.3,185.71,185.7,16.54582796]
[1760769881240,102.3,185.71,185.7,17.24582796]
[1760769881752,102.3,185.75,185.71,11.16079835]
[1760769882034,0.2,185.76,185.74,0.28432314]
[1760769882240,0.2,185.76,185.75,0.7]
[1760769882633,0.2,185.76,185.75,11.86079835]
[1760769882945,0.2,185.76,185.75,19.40251595]
[1760769883843,0.2,185.76,185.75,18.70251595]
[1760769884038,0.89,185.76,185.75,11.16079835]
[1760769884344,0.89,185.76,185.75,16.40221686]
[1760769884522,0.89,185.76,185.75,16.54437843]
[1760769887924,103.19,185.76,185.75,16.54437843]
[1760769890838,102.5,185.76,185.75,16.54437843]
[1760769891755,103.19,185.76,185.75,16.54437843]
[1760769895954,103.19,185.76,185.74,5.38379947]
[1760769897159,103.19,185.76,185.74,11.16079835]
[1760769898457,103.19,185.76,185.74,16.54453472]
[1760769899663,102.3,185.75,185.74,16.54453472]
[1760769900260,102.99,185.75,185.74,11.16079835]
[1760769904454,104.63688605,185.75,185.74,11.16079835]
[1760769905643,2.33688605,185.75,185.69,0.65]
[1760769905848,1.64688605,185.73,185.7,10.87647521]
[1760769906051,2.33688605,185.73,185.71,0.14216157]
[1760769906242,2.33688605,185.73,185.71,0.28432314]
[1760769907264,23.57,185.72,185.71,0.28432314]
[1760769908839,23.57,185.72,185.7,10.87647521]
[1760769909040,2.34688605,185.71,185.69,11.16079835]
[1760769909259,2.34688605,185.7,185.69,11.16079835]
[1760769909440,2.34688605,185.7,185.69,11.01863678]
[1760769909441,3.27523265,185.7,185.69,11.01863678]
[1760769909641,3.27523265,185.7,185.69,11.16079835]
[1760769914873,3.27523265,185.7,185.69,16.54611796]
[1760769917272,3.27523265,185.7,185.66,10.87647521]
[1760769917273,102.3,185.69,185.66,10.87647521]
[1760769917445,2.57523265,185.67,185.66,10.87647521]
[1760769917646,2.57523265,185.67,185.66,11.16079835]
[1760769917976,105.57523265,185.69,185.66,16.54698815]
[1760769918160,0.7,185.68,185.66,16.54698815]
[1760769920076,3.27523265,185.68,185.66,16.54698815]
[1760769922862,3.27523265,185.68,185.65,5.38644531]
[1760769923065,3.27523265,185.67,185.65,5.38644531]
[1760769923269,102.3,185.66,185.65,5.38644531]
[1760769923576,102.3,185.66,185.65,16.54724366]
[1760769923961,102.3,185.66,185.65,17.19724366]
[1760769924162,102.3,185.66,185.65,16.54724366]
[1760769926459,102.3,185.66,185.65,17.19724366]
[1760769927273,102.3,185.66,185.65,16.54724366]
[1760769927674,102.3,185.66,185.65,11.16079835]
[1760769928895,102.3,185.66,185.65,16.54727828]
[1760769930672,102.3,185.66,185.65,11.16079835]
[1760769931074,103.0,185.66,185.65,11.16079835]
[1760769931582,103.0,185.66,185.63,5.38702787]
[1760769931769,103.0,185.66,185.64,0.28432314]
[1760769933722,103.0,185.66,185.64,16.54736845]
[1760769934995,3.27523265,185.65,185.63,0.28432314]
[1760769935296,102.3,185.64,185.63,11.16079835]
[1760769935494,103.0,185.64,185.63,11.16079835]
[1760769935702,102.3,185.64,185.63,11.16079835]
[1760769936285,102.3,185.64,185.63,5.67138342]
[1760769936791,104.87523265,185.64,185.63,5.67138342]
[1760769937188,104.87523265,185.64,185.63,0.28432314]
[1760769937494,3.27523265,185.64,185.62,10.87647521]
[1760769937686,105.57523265,185.63,185.62,11.16079835]
[1760769938272,2.57523265,185.63,185.6,0.68]
[1760769938474,2.57523265,185.64,185.61,11.55647521]
[1760769938698,0.66,185.64,185.62,0.28432314]
[1760769939583,22.88,185.71,185.63,5.38706028]
[1760769939787,5.59208093,185.76,185.64,12.37947535]
[1760769939788,2.57523265,185.69,185.64,12.37947535]
[1760769939999,0.2,185.76,185.67,0.28432314]
[1760769940194,2.57523265,185.75,185.7,0.28432314]
[1760769940387,0.66,185.75,185.72,10.87647521]
[1760769940593,3.23523265,185.74,185.72,10.87647521]
[1760769942305,3.23523265,185.74,185.72,0.28432314]
[1760769942306,2.57523265,185.73,185.72,0.28432314]
[1760769945099,22.88,185.73,185.72,0.28432314]
[1760769952710,25.45523265,185.73,185.72,0.28432314]
[1760769953205,22.88,185.73,185.72,16.54524805]
[1760769953403,23.54,185.73,185.72,11.16079835]
[1760769953740,26.11523265,185.73,185.72,11.16079835]
[1760769954808,25.45523265,185.73,185.72,11.16079835]
[1760769955005,22.88,185.73,185.72,11.16079835]
[1760769955817,23.54,185.73,185.72,11.16079835]
[1760769956012,22.88,185.73,185.72,11.16079835]
[1760769956538,26.11523265,185.73,185.72,11.16079835]
[1760769957033,25.45523265,185.73,185.72,11.16079835]
[1760769958218,22.88,185.73,185.72,11.16079835]
[1760769958609,25.45523265,185.73,185.72,11.16079835]
[1760769959817,22.88,185.73,185.72,11.16079835]
[1760769960012,25.45523265,185.73,185.72,11.16079835]
[1760769960329,22.88,185.73,185.72,11.16079835]
[1760769960643,102.3,185.75,185.73,11.16079835]
[1760769960838,102.3,185.75,185.74,0.68]
[1760769962031,102.3,185.75,185.74,16.86865175]
[1760769962509,102.3,185.75,185.74,21.57252167]
[1760769962708,0.2,185.76,185.75,11.16079835]
[1760769962912,0.2,185.76,185.75,12.37915635]
[1760769964712,0.2,185.76,185.75,17.76273643]
[1760769965126,1e-08,185.76,185.75,17.76273643]
[1760769965333,0.2,185.79,185.75,17.76273643]
[1760769965334,1e-08,185.79,185.75,17.76273643]
[1760769965529,1e-08,185.79,185.78,0.28432314]
[1760769965733,1e-08,185.79,185.78,11.69906942]
[1760769965915,1e-08,185.79,185.78,12.39906942]
[1760769966117,1e-08,185.79,185.78,28.58073559]
[1760769966511,0.2,185.87,185.82,10.87647521]
[1760769966822,0.2,185.89,185.85,0.28432314]
[1760769967030,0.1,185.91,185.88,0.28432314]
[1760769967230,1e-08,185.93,185.91,23.02216157]
[1760769967547,1e-08,185.93,185.92,12.39866409]
[1760769967912,1e-08,185.93,185.92,12.40866409]
[1760769968336,1e-08,185.94,185.93,0.28432314]
[1760769968542,1e-08,185.94,185.93,11.87079835]
[1760769968948,1e-08,185.95,185.94,11.16079835]
[1760769969245,1e-08,185.95,185.94,39.07079835]
[1760769970239,1e-08,185.98,185.97,33.75647521]
[1760769970556,1e-08,186.0,185.99,0.28432314]
[1760769970728,1e-08,186.0,185.99,39.58846166]
[1760769970928,1e-08,186.0,185.99,44.96509481]
[1760769972245,1e-08,186.01,186.0,11.16079835]
[1760769972548,1e-08,186.01,186.0,11.87079835]
[1760769973146,1e-08,186.01,186.0,17.24714243]
[1760769974929,1e-08,186.01,186.0,33.40788797]
[1760769976047,1e-08,186.01,186.0,32.41356483]
[1760769976240,1e-08,186.01,186.0,60.11119923]
[1760769976434,1e-08,186.01,186.0,60.82119923]
[1760769977042,1e-08,186.01,186.0,61.10552237]
[1760769978455,1e-08,186.01,186.0,83.98552237]
[1760769985556,1e-08,186.01,186.0,56.82552237]
[1760769985741,1e-08,186.01,186.0,83.98552237]
[1760769988661,0.68,186.08,186.01,0.28432314]
[1760769988856,0.68,186.08,186.04,0.28432314]
[1760769989064,1.6411662,186.14,186.07,0.28432314]
[1760769989361,1.6411662,186.14,186.1,0.28432314]
[1760769989565,0.68,186.13,186.12,11.16079835]
[1760769990748,0.68,186.13,186.12,16.53367606]
[1760769994352,0.68,186.13,186.12,32.68659031]
[1760769996571,0.68,186.15,186.12,32.68659031]
[1760769996752,0.68,186.15,186.14,11.16079835]
[1760769996953,1.6411662,186.18,186.14,11.16079835]
[1760769997458,0.68,186.17,186.14,27.3137126]
[1760769997655,102.3,186.2,186.16,11.16079835]
[1760769998072,102.3,186.2,186.19,0.28432314]
[1760769998272,0.68,186.2,186.19,0.28432314]
[1760769999076,1.6411662,186.22,186.19,0.28432314]
[1760769999279,0.68,186.23,186.19,1.49140891]
[1760769999478,0.68,186.22,186.19,0.82140891]
[1760769999657,0.68,186.22,186.21,11.16079835]
[1760770001674,0.68,186.22,186.21,32.67877681]
[1760770007687,2.3211662,186.24,186.21,32.67877681]
[1760770007871,0.68,186.23,186.21,32.67877681]
[1760770008074,0.68,186.22,186.21,32.67877681]
[1760770009686,0.68,186.24,186.21,33.34877681]
[1760770009875,0.68,186.24,186.21,32.67877681]
[1760770010068,0.68,186.23,186.21,16.53107921]
[1760770010469,0.68,186.23,186.22,2.15291046]
[1760770012087,0.68,186.23,186.22,7.52290294]
[1760770014675,0.68,186.23,186.22,2.15291046]
[1760770014879,1.6411662,186.25,186.23,11.16079835]
[1760770015385,0.68,186.24,186.23,11.16079835]
[1760770017489,2.3211662,186.25,186.23,11.16079835]
[1760770017688,0.68,186.24,186.23,11.16079835]
[1760770018696,0.68,186.24,186.23,16.53050247]
[1760770018897,2.4211662,186.27,186.23,16.53050247]
[1760770019197,0.68,186.26,186.23,16.53050247]
[1760770019579,0.68,186.25,186.23,16.53050247]
[1760770020092,0.78,186.27,186.23,16.53050247]
[1760770020393,0.78,186.27,186.26,0.28432314]
[1760770020598,0.1,186.27,186.26,0.28432314]
[1760770020801,0.1,186.27,186.26,11.83079835]
[1760770021111,0.1,186.27,186.26,12.36768227]
[1760770021279,1e-08,186.34,186.31,10.87647521]
[1760770021474,1e-08,186.34,186.32,0.82103417]
[1760770021678,1e-08,186.34,186.32,1.49103417]
[1760770021979,1e-08,186.34,186.33,8.3579885]
[1760770023297,1e-08,186.34,186.33,19.51878685]
[1760770023988,1e-08,186.34,186.33,20.05546908]
[1760770024175,1e-08,186.34,186.33,19.51878685]
[1760770024381,1e-08,186.34,186.33,20.05546908]
[1760770024597,1e-08,186.34,186.33,13.48196455]
[1760770024904,1e-08,186.34,186.33,11.16079835]
[1760770026501,1e-08,186.34,186.33,16.52762065]
[1760770026805,1e-08,186.34,186.33,40.62430288]
[1760770027386,1e-08,186.34,186.33,40.08762065]
[1760770027795,1e-08,186.34,186.33,39.40762065]
[1760770028505,1e-08,186.34,186.33,40.08762065]
[1760770029617,1e-08,186.34,186.33,39.40762065]
[1760770036712,1e-08,186.34,186.33,40.62430288]
[1760770036903,1e-08,186.34,186.33,43.18098292]
[1760770037715,1e-08,186.34,186.33,70.30098292]
[1760770038018,0.71000001,186.34,186.33,39.40762065]
[1760770038432,3.26668005,186.34,186.29,10.87647521]
[1760770038601,0.71,186.33,186.3,0.28432314]
[1760770038794,0.71,186.33,186.3,5.6517679]
[1760770039109,3.26668004,186.32,186.3,5.6517679]
[1760770039315,3.26668004,186.32,186.3,5.36744476]
[1760770039823,2.55668004,186.32,186.31,0.28432314]
[1760770040324,3.26668004,186.32,186.31,0.28432314]
[1760770041229,3.26668004,186.32,186.27,16.24502623]
[1760770041409,2.55668004,186.3,186.27,16.24502623]
[1760770041596,2.55668004,186.3,186.27,16.92502623]
[1760770041792,0.71,186.31,186.27,30.8832589]
[1760770042106,0.71,186.3,186.28,0.28432314]
[1760770042514,3.26668004,186.3,186.28,0.28432314]
[1760770042694,1e-08,186.34,186.27,10.87647521]
[1760770042695,3.26668004,186.29,186.27,10.87647521]
[1760770043023,0.71,186.28,186.27,11.16079835]
[1760770043717,2.55668004,186.29,186.28,0.28432314]
[1760770044018,1e-08,186.34,186.28,11.16079835]
[1760770044224,2.55668004,186.31,186.28,11.16079835]
[1760770044416,0.71,186.3,186.28,11.16079835]
[1760770044722,0.71,186.29,186.28,0.28432314]
[1760770045424,0.71,186.29,186.28,5.65258597]
[1760770045597,0.71,186.29,186.28,0.28432314]
[1760770047522,0.71,186.29,186.23,11.41344562]
[1760770047819,3.26668004,186.28,186.21,10.87647521]
[1760770048028,3.26668004,186.3,186.25,0.14216157]
[1760770048221,3.26668004,186.3,186.25,1.50123589]
[1760770048426,3.26668004,186.3,186.28,0.28432314]
[1760770048629,0.71,186.29,186.28,0.28432314]
[1760770048863,0.71,186.29,186.23,16.14335297]
[1760770049123,2.55668004,186.26,186.23,10.87647521]
[1760770049328,0.71,186.25,186.21,16.24670242]
[1760770049509,3.26668004,186.25,186.21,16.92670242]
[1760770049709,3.26668004,186.25,186.22,0.68]
[1760770050017,2.55668004,186.31,186.24,22.88]
[1760770050219,1e-08,186.34,186.28,22.88]
[1760770050404,1e-08,186.34,186.29,11.69759581]
[1760770050911,1e-08,186.34,186.31,11.16079835]
[1760770051116,1e-08,186.34,186.33,11.16079835]
[1760770051306,1e-08,186.34,186.33,11.69748058]
[1760770051495,1e-08,186.34,186.33,12.37748058]
[1760770051902,1e-08,186.34,186.33,11.16079835]
[1760770053230,1e-08,186.34,186.33,17.20762065]
[1760770053445,1e-08,186.34,186.33,19.76430069]
[1760770059323,1e-08,186.34,186.33,69.80430069]
[1760770059549,1e-08,186.34,186.33,42.64430069]
[1760770059915,1e-08,186.34,186.33,69.80430069]
[1760770060154,1e-08,186.34,186.33,42.64430069]
[1760770060440,0.1,186.42,186.37,11.16079835]
[1760770060641,0.1,186.42,186.4,0.28432314]
[1760770060851,0.1,186.42,186.41,39.57725025]
[1760770061030,0.1,186.42,186.41,22.57372546]
[1760770061234,3.35668004,186.42,186.34,0.53665342]
[1760770061446,0.1,186.42,186.36,10.87647521]
[1760770061743,0.1,186.42,186.33,68.49798958]
[1760770061744,0.1,186.42,186.41,11.16079835]
[1760770061952,0.1,186.42,186.41,11.69725025]
[1760770062147,0.1,186.42,186.41,17.74176932]
[1760770062939,0.1,186.42,186.41,17.06176932]
[1760770063346,0.1,186.42,186.41,16.52531742]
[1760770063743,0.8,186.42,186.41,16.52531742]
[1760770064244,0.1,186.42,186.41,16.52531742]
[1760770065049,0.8,186.42,186.41,16.52531742]
[1760770065350,0.8,186.42,186.41,11.16079835]
[1760770065558,0.8,186.42,186.41,10.87647521]
[1760770065938,3.35668004,186.42,186.36,5.36570979]
[1760770066257,0.7,186.41,186.37,0.28432314]
[1760770066628,2.65668004,186.42,186.37,0.28432314]
[1760770066928,0.7,186.41,186.37,0.82216157]
[1760770067136,0.7,186.41,186.39,11.16079835]
[1760770068035,0.1,186.42,186.39,11.16079835]
[1760770068227,0.8,186.42,186.39,11.16079835]
[1760770068423,0.7,186.41,186.39,11.16079835]
[1760770069246,0.7,186.41,186.39,5.64913428]
[1760770070728,0.1,186.42,186.4,10.87647521]
[1760770071134,0.1,186.42,186.39,0.28432314]
[1760770071360,0.7,186.41,186.39,0.28432314]
[1760770071545,0.7,186.4,186.39,0.28432314]
[1760770071931,0.7,186.4,186.39,5.64941783]
[1760770073443,0.7,186.4,186.39,0.28432314]
[1760770073950,0.7,186.4,186.39,16.52589304]
[1760770074342,0.8,186.42,186.4,10.87647521]
[1760770074538,0.7,186.41,186.4,0.28432314]
[1760770075234,16.36593739,186.43,186.4,1.21648068]
[1760770075431,17.06593739,186.43,186.42,0.28432314]
[1760770076048,16.36593739,186.43,186.42,17.74145278]
[1760770076248,0.7,186.51,186.44,0.28432314]
[1760770076555,0.1,186.53,186.47,0.28432314]
[1760770076755,0.1,186.53,186.5,0.28432314]
[1760770078052,0.1,186.53,186.51,16.52244115]
[1760770079248,1e-08,186.52,186.51,17.73860543]
[1760770079449,0.1,186.6,186.52,11.16079835]
[1760770079653,0.1,186.6,186.55,0.28432314]
[1760770079858,0.1,186.6,186.58,0.28432314]
[1760770080060,0.1,186.6,186.59,5.35934401]
[1760770080445,0.1,186.6,186.59,16.23581922]
[1760770080651,0.1,186.6,186.59,16.37798079]
[1760770080848,0.8,186.6,186.59,11.01863678]
[1760770081057,0.8,186.6,186.59,10.87647521]
[1760770081258,0.8,186.6,186.55,0.14216157]
[1760770081566,0.8,186.6,186.55,0.28432314]
[1760770081750,0.7,186.59,186.55,0.28432314]
[1760770082253,0.7,186.59,186.57,0.28432314]
[1760770083564,0.7,186.58,186.57,0.28432314]
[1760770083740,0.7,186.58,186.55,10.87647521]
[1760770083937,0.7,186.57,186.55,10.87647521]
[1760770084944,0.7,186.57,186.55,16.23693068]
[1760770085473,102.4,186.6,186.56,0.28432314]
[1760770085674,0.68,186.59,186.56,0.28432314]
[1760770086039,0.68,186.58,186.56,0.28432314]
[1760770086245,0.68,186.57,186.56,0.28432314]
[1760770086446,0.68,186.57,186.55,0.28432314]
[1760770086659,3.23668004,186.56,186.48,0.53625053]
[1760770086862,2.55668004,186.54,186.49,5.36221781]
[1760770087056,0.68,186.53,186.49,5.36221781]
[1760770087259,0.68,186.53,186.5,0.28432314]
[1760770087457,0.68,186.53,186.49,6.02221781]
[1760770087665,0.68,186.52,186.5,10.87647521]
[1760770087858,0.68,186.54,186.49,10.87647521]
[1760770088053,0.72,186.58,186.5,0.95432314]
[1760770088258,0.72,186.58,186.53,0.28432314]
[1760770088466,0.72,186.57,186.53,1.49042993]
[1760770088967,0.72,186.56,186.53,0.28432314]
[1760770089270,0.72,186.56,186.52,11.69693388]
[1760770089444,2.55668004,186.56,186.52,11.69693388]
[1760770089649,0.72,186.55,186.52,11.16079835]
[1760770089872,3.27668004,186.55,186.52,11.16079835]
[1760770090069,0.72,186.54,186.51,11.16079835]
[1760770090285,3.27668004,186.54,186.51,10.87647521]
[1760770091188,3.27668004,186.54,186.51,5.36145465]
[1760770091490,2.35341605,186.54,186.51,5.36145465]
[1760770091768,1.63341605,186.54,186.51,5.36145465]
[1760770091980,1.63341605,186.52,186.51,11.16079835]
[1760770092275,1.63341605,186.52,186.48,10.87647521]
[1760770092456,2.35341605,186.52,186.48,11.54647521]
[1760770092978,1.63341605,186.53,186.49,6.17423263]
[1760770093157,102.3,186.55,186.5,0.14216157]
[1760770093365,2.35341605,186.54,186.5,0.14216157]
[1760770093898,0.72,186.53,186.5,0.14216157]
[1760770094465,1.63341605,186.54,186.51,10.87647521]
[1760770094663,2.35341605,186.54,186.51,10.87647521]
[1760770094873,102.3,186.55,186.51,11.54647521]
[1760770095373,0.72,186.57,186.52,1.49045867]
[1760770095687,0.72,186.59,186.55,0.28432314]
[1760770095886,1.73341605,186.6,186.56,10.87647521]
[1760770096067,0.82,186.6,186.56,10.87647521]
[1760770096381,0.1,186.6,186.59,11.16079835]
[1760770098065,0.1,186.6,186.59,11.83079835]
[1760770098458,0.1,186.6,186.59,17.19014236]
[1760770098866,0.1,186.6,186.59,16.52014236]
[1760770099565,0.1,186.6,186.59,17.19014236]
[1760770100279,0.1,186.6,186.59,0.28432314]
[1760770100490,0.82,186.6,186.58,16.23609545]
[1760770100776,0.1,186.6,186.59,0.28432314]
[1760770101776,0.1,186.6,186.59,5.64366715]
[1760770105087,0.1,186.6,186.59,6.31366715]
[1760770105386,0.1,186.6,186.59,5.64366715]
[1760770107386,0.1,186.6,186.59,6.31366715]
[1760770107569,0.1,186.6,186.59,5.64366715]
[1760770108274,2.45341605,186.6,186.56,10.87647521]
[1760770108472,1.63341605,186.58,186.56,10.87647521]
[1760770108678,0.72,186.57,186.51,5.3616428]
[1760770108881,1.63341605,186.56,186.51,5.3616428]
[1760770109086,1.63341605,186.54,186.5,5.36187843]
[1760770109263,2.35341605,186.54,186.51,11.16079835]
[1760770109469,102.3,186.59,186.51,10.87647521]
[1760770109675,1.63341605,186.55,186.51,10.87647521]
[1760770109985,0.72,186.54,186.51,10.87647521]
[1760770110372,0.72,186.53,186.51,10.87647521]
[1760770110782,0.72,186.57,186.52,11.83079835]
[1760770110974,103.93341605,186.58,186.54,10.87647521]
[1760770111201,103.93341605,186.58,186.51,19.30185991]
[1760770111202,0.1,186.6,186.56,10.87647521]
[1760770111495,0.1,186.6,186.59,0.28432314]
[1760770111694,0.1,186.6,186.57,0.28432314]
[1760770111695,0.82,186.6,186.57,0.28432314]
[1760770111988,0.82,186.6,186.58,5.35963125]
[1760770112571,0.1,186.6,186.58,5.35963125]
[1760770113183,0.1,186.6,186.59,11.16079835]
[1760770113687,0.1,186.6,186.59,5.64366715]
[1760770113890,1.73341605,186.6,186.59,11.16079835]
[1760770114074,2.45341605,186.6,186.59,11.16079835]
[1760770114390,2.45341605,186.6,186.53,14.60814857]
[1760770114688,0.72,186.59,186.55,0.28432314]
[1760770114891,1.63341605,186.57,186.55,0.14216157]
[1760770115270,0.72,186.59,186.56,10.87647521]